bitfinex/quotes_ETHUSD_20250107
["timestamp","ask_amount","ask_price","bid_price","bid_amount"]
[1736215036826,2.70621,3695.2,3695.1,0.03234014]
[1736215037226,2.70621,3695.2,3694.8,0.185]
[1736215037602,2.70621,3695.2,3694.9,0.03203082]
[1736215038017,2.70621,3695.2,3694.8,0.185]
[1736215038214,2.70621,3695.2,3695.0,0.03202569]
[1736215038414,2.70621,3695.2,3694.9,0.03203082]
[1736215038615,2.70621,3695.2,3695.1,0.03202055]
[1736215038830,2.70621,3695.2,3695.0,0.03202569]
[1736215039122,2.70621,3695.2,3695.1,0.03202055]
[1736215039336,2.70621,3695.2,3694.8,0.185]
[1736215039518,2.70621,3695.2,3694.9,0.03203082]
[1736215039824,2.70621,3695.2,3694.8,0.185]
[1736215039994,2.72270322,3695.1,3695.0,0.03202569]
[1736215040194,2.72270322,3695.1,3694.9,0.03203082]
[1736215040396,2.72270322,3695.1,3694.8,0.185]
[1736215040397,2.72270322,3695.1,3695.0,0.03202569]
[1736215040818,2.72270322,3695.1,3694.8,0.185]
[1736215041022,2.72270322,3695.1,3695.0,0.03202569]
[1736215041217,2.72270322,3695.1,3694.9,0.03203082]
[1736215041421,2.72270322,3695.1,3695.0,0.03202569]
[1736215041834,2.72270322,3695.1,3694.8,0.185]
[1736215042031,2.72270322,3695.1,3695.0,0.03202569]
[1736215042232,2.72270322,3695.1,3694.9,0.03203082]
[1736215042439,2.72270322,3695.1,3695.0,0.03202569]
[1736215042634,2.70612,3695.4,3695.0,0.03202569]
[1736215042877,2.70612,3695.4,3694.8,0.185]
[1736215043017,2.70612,3695.4,3695.1,0.03202055]
[1736215043334,2.70612,3695.4,3694.8,0.185]
[1736215043501,0.7939,3695.8,3695.0,0.2777]
[1736215043703,2.72228322,3695.7,3695.1,0.03218877]
[1736215043943,0.01642322,3695.7,3695.1,0.03218877]
[1736215044302,0.01642322,3695.7,3695.0,0.2777]
[1736215044303,2.706,3695.5,3695.0,0.2777]
[1736215044523,0.01642322,3695.4,3695.1,0.03208092]
[1736215045239,2.706,3695.5,3695.1,0.03208092]
[1736215045899,0.01642322,3695.4,3695.1,0.03208092]
[1736215046703,2.706,3695.5,3695.1,0.03208092]
[1736215046903,0.0075,3695.7,3695.1,0.03208092]
[1736215047105,2.70584,3695.7,3695.1,0.03208092]
[1736215048205,2.72236322,3695.6,3695.1,0.03208092]
[1736215050557,2.70599,3695.5,3695.2,0.185]
[1736215051065,2.70599,3695.5,3695.3,0.03202319]
[1736215051427,2.70599,3695.5,3695.2,0.185]
[1736215051758,2.70599,3695.5,3695.3,0.03202319]
[1736215052166,2.70599,3695.5,3695.2,0.185]
[1736215052654,2.70599,3695.5,3695.3,0.03202319]
[1736215052860,2.70599,3695.5,3695.2,0.185]
[1736215053065,2.70599,3695.5,3695.3,0.03202319]
[1736215053422,2.70599,3695.5,3695.2,0.185]
[1736215053623,2.70599,3695.5,3695.3,0.03202319]
[1736215053845,2.70585,3695.7,3695.3,0.03202319]
[1736215054063,2.70585,3695.7,3695.2,0.185]
[1736215054260,3.7879,3696.0,3695.2,0.21206106]
[1736215054425,3.7879,3696.0,3695.4,0.2777]
[1736215054757,0.38118232,3695.9,3695.4,0.2777]
[1736215054959,0.38118232,3695.9,3695.5,0.03201292]
[1736215055325,0.7879,3696.0,3695.5,0.03201292]
[1736215055522,2.70574,3695.9,3695.5,0.03201292]
[1736215055851,2.70574,3695.9,3694.8,2.79517379]
[1736215055852,0.7996,3695.5,3694.8,2.79517379]
[1736215056045,0.7846,3695.8,3694.8,2.79517379]
[1736215056247,2.70596,3695.6,3694.9,2.51747379]
[1736215057566,2.70596,3695.6,3694.8,1.6974018]
[1736215057753,2.70596,3695.6,3694.9,0.185]
[1736215058441,2.70577,3695.8,3695.0,2.3475293]
[1736215058684,2.70577,3695.8,3695.1,0.2777]
[1736215059146,2.70587,3695.7,3695.1,0.2777]
[1736215060059,2.70587,3695.7,3695.2,2.32046828]
[1736215061066,2.72234322,3695.6,3695.2,1.39264022]
[1736215062245,2.72234322,3695.6,3695.1,0.2777]
[1736215063164,2.70592,3695.6,3695.1,0.2777]
[1736215063370,2.70592,3695.6,3695.2,0.92892087]
[1736215064459,2.70592,3695.6,3695.3,3.44753394]
[1736215064769,2.70577,3695.8,3695.3,3.44753394]
[1736215065548,2.70577,3695.8,3695.4,2.32270037]
[1736215066681,2.70577,3695.8,3695.1,1.97045655]
[1736215066682,2.70577,3695.8,3695.5,2.32270037]
[1736215067077,2.70562,3696.0,3695.5,2.32270037]
[1736215067251,2.7057,3695.9,3695.5,2.32270037]
[1736215067452,2.7057,3695.9,3695.6,0.02957029]
[1736215067777,2.7057,3695.9,3695.6,0.95849116]
[1736215069095,2.7057,3695.9,3695.6,0.02957029]
[1736215069791,2.71286,3696.4,3695.7,0.2777]
[1736215069792,0.8245,3696.4,3695.7,0.2777]
[1736215070122,2.70553,3696.2,3695.8,0.02952551]
[1736215070790,0.01642322,3696.1,3695.8,0.02952551]
[1736215071119,2.70553,3696.2,3695.8,0.02952551]
[1736215071294,0.01642322,3696.1,3695.8,0.02952551]
[1736215074866,0.8245,3696.4,3695.8,0.02952551]
[1736215075072,2.7052,3696.6,3695.8,0.02952551]
[1736215075273,4.97008397,3697.0,3695.9,0.2777]
[1736215075274,2.26515397,3697.0,3695.9,0.2777]
[1736215075493,2.26515397,3697.0,3696.1,0.2777]
[1736215075676,2.26515397,3697.0,3696.3,0.2777]
[1736215075874,2.26515397,3697.0,3696.4,0.185]
[1736215076413,2.83278809,3697.2,3696.4,0.21440845]
[1736215076414,2.70478,3697.2,3696.4,0.21440845]
[1736215076710,2.70489,3697.0,3696.4,0.21440845]
[1736215077588,2.70489,3697.0,3696.5,2.31907515]
[1736215077973,0.01642322,3696.9,3696.6,0.02939818]
[1736215078762,0.01642322,3696.9,3696.4,1.57644509]
[1736215079013,0.01642322,3696.9,3696.7,0.02901794]
[1736215079211,0.01642322,3696.9,3696.4,1.57644509]
[1736215079416,2.70489,3697.0,3696.8,0.02901281]
[1736215079599,0.01642322,3696.9,3696.4,1.57644509]
[1736215079890,0.01642322,3696.9,3696.4,0.185]
[1736215080903,0.0075,3697.2,3696.4,0.185]
[1736215081281,2.71225,3697.2,3696.4,0.185]
[1736215081600,0.015,3697.3,3696.5,0.2777]
[1736215081800,0.0075,3697.3,3696.5,0.2777]
[1736215082009,2.70482,3697.1,3696.5,0.2777]
[1736215082181,0.01642322,3697.0,3696.5,0.2777]
[1736215082596,0.01642322,3697.0,3696.6,0.02865223]
[1736215083282,2.71217,3697.3,3696.6,0.02865223]
[1736215084317,2.571092,3697.7,3696.8,0.2777]
[1736215084516,2.26515397,3698.5,3696.8,0.2777]
[1736215084517,0.01642322,3697.6,3696.8,0.2777]
[1736215084678,0.8169,3698.3,3697.2,0.2777]
[1736215084875,0.005,3698.4,3697.4,0.2777]
[1736215085187,0.005,3698.4,3697.6,0.2777]
[1736215085387,0.005,3698.4,3697.8,0.2777]
[1736215085587,0.005,3698.4,3697.9,0.02703983]
[1736215085924,0.005,3698.4,3697.8,0.2777]
[1736215086218,0.005,3698.4,3698.0,0.02833039]
[1736215086373,0.005,3698.4,3698.1,0.185]
[1736215086710,0.005,3698.4,3698.1,0.21332526]
[1736215089013,0.005,3698.4,3698.1,0.185]
[1736215090711,6.049532,3698.3,3698.2,0.02832013]
[1736215090915,6.049532,3698.3,3697.8,0.185]
[1736215090916,3.345592,3698.3,3697.8,0.185]
[1736215091074,2.70412,3698.1,3697.8,0.185]
[1736215091715,2.71147,3698.3,3697.8,0.185]
[1736215091925,2.70397,3698.3,3697.8,0.185]
[1736215093428,0.01642322,3698.2,3697.8,0.185]
[1736215094522,2.70402,3698.2,3697.8,0.185]
[1736215095026,2.70418,3698.0,3697.8,0.185]
[1736215095829,2.571092,3698.3,3697.8,0.185]
[1736215096030,2.70402,3698.2,3697.8,0.185]
[1736215097294,2.70402,3698.2,3697.4,0.30474295]
[1736215097496,2.70402,3698.2,3697.9,0.21202012]
[1736215097730,2.70402,3698.2,3698.0,0.2777]
[1736215098517,2.70402,3698.2,3697.9,0.185]
[1736215098716,0.01642322,3698.1,3697.9,0.185]
[1736215099743,2.70402,3698.2,3697.9,0.185]
[1736215105156,0.0075,3698.3,3697.9,0.185]
[1736215106934,2.70887,3698.4,3697.9,0.185]
[1736215107144,0.005,3698.4,3698.0,0.2777]
[1736215107447,0.005,3698.4,3698.0,0.3045901]
[1736215111462,0.005,3698.4,3698.0,0.2777]
[1736215111686,0.005,3698.4,3698.1,0.02688497]
[1736215112087,0.005,3698.4,3698.0,0.2777]
[1736215112500,0.005,3698.4,3698.1,0.02688497]
[1736215117206,2.70887,3698.4,3698.1,0.02688497]
[1736215117727,2.70887,3698.4,3698.0,0.2777]
[1736215119175,2.70887,3698.4,3698.1,0.185]
[1736215120387,0.01642322,3698.3,3698.1,0.185]
[1736215121568,0.01642322,3698.3,3698.2,0.02580672]
[1736215121768,0.01642322,3698.3,3698.1,0.185]
[1736215121969,0.01642322,3698.3,3698.2,0.02580672]
[1736215122165,0.01642322,3698.3,3698.1,0.185]
[1736215122405,0.01642322,3698.3,3698.2,0.02580672]
[1736215122799,2.72036322,3698.3,3698.2,0.02580672]
[1736215123375,0.7603,3698.2,3697.7,0.185]
[1736215123577,2.70424,3697.9,3697.7,0.185]
[1736215123905,0.01642322,3697.8,3697.7,0.185]
[1736215124408,0.01642322,3697.8,3697.6,1.12483357]
[1736215124409,2.70438,3697.7,3697.6,1.12483357]
[1736215124576,3.92128152,3697.7,3697.2,2.69274296]
[1736215124776,2.7046,3697.4,3697.2,2.69274296]
[1736215126114,2.7046,3697.4,3697.2,0.185]
[1736215127475,0.01642322,3697.3,3697.2,0.185]
[1736215128072,2.72109322,3697.3,3697.2,0.185]
[1736215141135,2.72109322,3697.3,3696.7,0.2777]
[1736215141336,3.53389322,3697.3,3697.2,0.185]
[1736215141930,3.53389322,3697.3,3696.7,0.2777]
[1736215142137,3.53389322,3697.3,3697.0,0.185]
[1736215142641,3.53389322,3697.3,3697.1,0.02675056]
[1736215144043,2.70474,3697.2,3697.1,0.02675056]
[1736215145043,3.86407276,3697.2,3697.1,0.02675056]
[1736215145344,1.15933276,3697.2,3697.1,0.02675056]
[1736215145719,3.86394276,3697.4,3697.1,0.02675056]
[1736215146543,2.70432,3697.8,3697.2,0.2777]
[1736215146866,1.15933276,3697.5,3697.3,0.02678768]
[1736215147013,0.01642322,3697.7,3697.3,0.02678768]
[1736215147342,0.01642322,3697.7,3697.2,0.2777]
[1736215147644,0.01642322,3697.7,3697.3,0.02673167]
[1736215147847,0.01642322,3697.7,3697.2,0.2777]
[1736215148041,0.01642322,3697.7,3697.4,0.02672654]
[1736215148249,5.27294474,3697.6,3697.0,0.185]
[1736215148436,0.01642322,3697.5,3697.0,0.185]
[1736215150506,5.27294474,3697.6,3697.0,0.185]
[1736215151211,5.27294474,3697.6,3697.1,0.185]
[1736215151212,0.7599,3697.4,3697.1,0.185]
[1736215155049,0.8046,3697.7,3697.1,0.185]
[1736215155253,3.50899,3697.7,3697.1,0.185]
[1736215156046,0.01642322,3697.6,3697.1,0.185]
[1736215156515,3.50899,3697.7,3697.1,0.185]
[1736215156720,3.52541322,3697.7,3697.1,0.185]
[1736215157653,3.52541322,3697.7,3697.2,0.02642519]
[1736215157859,3.52541322,3697.7,3697.1,0.185]
[1736215158019,3.52541322,3697.7,3697.3,0.02642006]
[1736215158221,3.52541322,3697.7,3697.1,0.185]
[1736215158425,3.52541322,3697.7,3697.4,0.02641492]
[1736215158760,3.52541322,3697.7,3697.2,0.185]
[1736215158761,2.70453,3697.5,3697.2,0.185]
[1736215158960,2.72095322,3697.5,3697.2,0.185]
[1736215159128,2.72095322,3697.5,3697.3,0.02623478]
[1736215159455,2.72095322,3697.5,3697.2,0.185]
[1736215159662,2.72095322,3697.5,3697.4,0.02622965]
[1736215159884,2.70453,3697.5,3697.3,0.02623478]
[1736215160045,2.70453,3697.5,3697.4,0.02622965]
[1736215160248,2.70453,3697.5,3697.2,0.185]
[1736215160475,2.70453,3697.5,3697.4,0.02622965]
[1736215160633,2.70453,3697.5,3697.3,0.0262908]
[1736215160836,2.70453,3697.5,3697.2,0.185]
[1736215161064,2.70453,3697.5,3697.4,0.02628566]
[1736215161381,2.70453,3697.5,3697.2,0.185]
[1736215161589,2.70453,3697.5,3697.2,0.1795863]
[1736215161867,2.70453,3697.5,3697.3,0.02626494]
[1736215162362,2.70453,3697.5,3697.2,0.1795863]
[1736215162561,0.01642322,3697.6,3697.4,0.02625981]
[1736215162766,0.01642322,3697.6,3697.3,0.02626494]
[1736215163062,0.01642322,3697.6,3697.5,0.02625468]
[1736215163251,2.72087322,3697.6,3697.2,0.1795863]
[1736215163452,2.72087322,3697.6,3697.5,0.02627192]
[1736215163628,2.72087322,3697.6,3697.2,0.1795863]
[1736215163828,2.72087322,3697.6,3697.5,0.02627192]
[1736215164028,2.72087322,3697.6,3697.2,0.1795863]
[1736215164268,2.72087322,3697.6,3697.5,0.02627192]
[1736215164562,2.72087322,3697.6,3697.2,0.1795863]
[1736215164788,2.72087322,3697.6,3697.5,0.02627192]
[1736215164926,2.72087322,3697.6,3697.2,0.1795863]
[1736215165123,2.72087322,3697.6,3697.3,0.02628218]
[1736215165364,0.01642322,3697.6,3697.3,0.02628218]
[1736215165527,2.70453,3697.5,3697.2,0.185]
[1736215165732,2.70453,3697.5,3697.4,0.02627274]
[1736215165940,2.70453,3697.5,3697.3,0.02627787]
[1736215166150,2.70453,3697.5,3697.2,0.185]
[1736215166362,0.01642322,3697.6,3697.4,0.02627274]
[1736215166665,2.72087322,3697.6,3697.2,0.185]
[1736215166972,2.72087322,3697.6,3697.5,0.02625468]
[1736215167174,3.88006835,3697.6,3697.2,0.185]
[1736215167551,3.86364513,3697.6,3697.5,0.02625468]
[1736215167746,3.86364513,3697.6,3697.2,0.185]
[1736215168074,3.86364513,3697.6,3697.3,0.02626494]
[1736215168276,3.86364513,3697.6,3697.3,0.95491107]
[1736215168479,3.86364513,3697.6,3697.3,0.92864613]
[1736215168675,3.86364513,3697.6,3697.4,0.02625981]
[1736215169039,3.86364513,3697.6,3697.4,0.95490594]
[1736215169871,3.86364513,3697.6,3697.5,0.92864613]
[1736215170250,3.86364513,3697.6,3697.5,0.95490081]
[1736215170982,3.86364513,3697.6,3697.5,2.3494442]
[1736215171338,4.25165197,3697.6,3697.5,2.3494442]
[1736215172265,4.25165197,3697.6,3697.5,0.95490081]
[1736215176574,4.25165197,3697.6,3697.5,0.02625468]
[1736215178253,3.86364513,3697.6,3697.5,0.02625468]
[1736215178887,3.86364513,3697.6,3697.5,0.95584347]
[1736215179594,3.86364513,3697.6,3697.5,0.02625468]
[1736215180571,3.86364513,3697.6,3697.4,0.185]
[1736215181091,0.01642322,3697.5,3697.4,0.185]
[1736215181599,2.72095322,3697.5,3697.4,0.185]
[1736215181906,3.10896806,3697.5,3697.4,0.185]
[1736215182103,3.86766806,3697.5,3697.4,0.185]
[1736215182603,2.70489,3697.1,3697.0,0.185]
[1736215182823,3.86408513,3697.1,3697.0,3.72931685]
[1736215183025,3.86408513,3697.1,3697.0,3.54431685]
[1736215183227,3.86408513,3697.1,3697.0,3.57067904]
[1736215183905,4.30788596,3697.1,3697.0,2.35030685]
[1736215185294,5.06968596,3697.1,3697.0,0.02636219]
[1736215185482,6.77888109,3697.1,3697.0,0.02636219]
[1736215185682,2.70495,3697.0,3696.8,0.185]
[1736215185910,1.17561835,3696.9,3696.8,0.185]
[1736215187353,1.17561835,3696.9,3696.8,1.11417084]
[1736215187560,1.17561835,3696.9,3696.8,1.13966167]
[1736215188314,1.85515478,3696.9,3696.8,1.13966167]
[1736215188745,1.85515478,3696.9,3696.8,0.21049083]
[1736215195454,1.17561835,3696.9,3696.8,0.21049083]
[1736215196735,1.17561835,3696.9,3696.8,0.02549083]
[1736215197139,1.17561835,3696.9,3696.7,0.185]
[1736215197339,1.17561835,3696.9,3696.8,0.02562013]
[1736215198050,1.17561835,3696.9,3696.7,0.185]
[1736215198252,1.17561835,3696.9,3696.8,0.02562013]
[1736215198480,1.17561835,3696.9,3696.7,0.185]
[1736215198637,1.17561835,3696.9,3696.8,0.02562013]
[1736215198973,1.17561835,3696.9,3696.7,0.185]
[1736215199176,1.17561835,3696.9,3696.8,0.02562013]
[1736215199563,1.17561835,3696.9,3696.7,0.185]
[1736215199867,1.17561835,3696.9,3696.8,0.02562013]
[1736215200067,1.17561835,3696.9,3696.7,0.185]
[1736215200270,2.70504,3696.8,3696.7,0.185]
[1736215200590,1.17561835,3696.9,3696.7,0.185]
[1736215202694,2.70473,3697.3,3696.8,0.2777]
[1736215202862,3.86392513,3697.3,3696.8,0.2777]
[1736215203335,1.15919513,3697.1,3696.8,0.2777]
[1736215204358,0.7871,3697.8,3696.8,0.2777]
[1736215204582,3.86358513,3697.7,3696.8,0.2777]
[1736215204886,1.15919513,3697.5,3696.8,0.2777]
[1736215205261,2.70439,3697.7,3696.8,0.2777]
[1736215205262,1.15919513,3697.7,3696.9,0.02704777]
[1736215205462,1.15919513,3697.7,3697.0,0.2777]
[1736215206791,1.15919513,3697.7,3697.2,0.2777]
[1736215207084,2.70892,3698.4,3697.2,0.2777]
[1736215207085,0.8351,3698.4,3697.4,0.2777]
[1736215207285,1.15919513,3698.1,3697.4,0.2777]
[1736215208055,2.70887,3698.4,3697.4,0.30474273]
[1736215208310,1.15919513,3698.2,3697.4,0.30474273]
[1736215209474,1.15919513,3698.2,3697.6,0.2777]
[1736215209757,1.15919513,3698.2,3697.7,0.185]
[1736215209957,1.15919513,3698.0,3697.7,0.185]
[1736215210809,1.15919513,3698.0,3697.7,2.50354651]
[1736215211995,1.15919513,3698.0,3697.8,0.92777684]
[1736215212302,1.15919513,3698.2,3697.8,0.92777684]
[1736215213099,4.68635513,3698.0,3697.9,0.185]
[1736215213323,5.24385513,3698.0,3697.9,0.185]
[1736215213669,5.25135513,3698.0,3697.9,0.185]
[1736215217986,4.42835513,3698.0,3697.9,0.185]
[1736215218186,4.42085513,3698.0,3697.9,0.185]
[1736215218412,1.15919513,3698.0,3697.9,0.185]
[1736215218935,1.15919513,3698.2,3697.9,0.185]
[1736215219271,1.15919513,3698.2,3697.9,0.20989589]
[1736215220134,0.01642322,3698.1,3697.9,0.20989589]
[1736215220305,1.15919513,3698.0,3697.9,0.20989589]
[1736215221872,1.17561835,3698.2,3697.9,0.20989589]
[1736215222504,1.15919513,3698.2,3697.9,0.20989589]
[1736215223511,0.02142322,3698.4,3697.9,0.20989589]
[1736215223698,0.005,3698.4,3697.9,0.20989589]
[1736215223906,1.15919513,3698.3,3697.9,0.20989589]
[1736215226031,0.005,3698.4,3698.0,0.2777]
[1736215226186,0.005,3698.4,3698.0,0.30224622]
[1736215227594,0.005,3698.4,3698.1,0.02703948]
[1736215227925,0.005,3698.4,3698.3,5.98164]
[1736215228227,0.005,3698.4,3698.3,6.00607179]
[1736215228534,0.005,3698.4,3698.3,0.30213179]
[1736215228705,0.005,3698.4,3698.3,0.48713179]
[1736215229507,0.005,3698.4,3698.3,2.17289486]
[1736215229831,0.01642322,3698.9,3698.3,2.17289486]
[1736215230415,0.01642322,3698.9,3698.3,0.48713179]
[1736215233846,0.01642322,3698.9,3697.9,25.0]
[1736215233847,2.70382,3698.5,3698.4,0.185]
[1736215235042,0.5575,3698.8,3698.4,0.185]
[1736215235209,2.70379,3698.5,3698.4,0.185]
[1736215236257,3.26129,3698.5,3698.4,0.185]
[1736215238242,4.19133896,3698.5,3698.4,0.185]
[1736215238462,2.70416,3698.1,3697.9,25.185]
[1736215238763,4.02916,3698.0,3697.9,25.0]
[1736215239088,7.02916,3698.0,3697.9,25.0]
[1736215239291,8.25914064,3698.0,3697.9,25.0]
[1736215239495,8.25914064,3698.0,3697.9,17.53655179]
[1736215239695,8.25914064,3698.0,3697.9,12.12807179]
[1736215239842,8.25914064,3698.0,3697.9,10.77595179]
[1736215240760,8.25914064,3698.0,3697.9,5.36747179]
[1736215241068,8.25914064,3698.0,3697.9,4.01535179]
[1736215241639,8.25914064,3698.0,3697.9,1.79e-06]
[1736215243842,0.0075,3696.6,3695.9,1.1182115]
[1736215244057,0.55,3696.4,3695.9,1.1182115]
[1736215244242,0.55,3696.4,3696.1,0.185]
[1736215245189,0.01642322,3696.3,3696.1,0.185]
[1736215246030,0.0075,3696.2,3695.8,0.2777]
[1736215246235,0.0075,3696.2,3695.6,1.1182115]
[1736215246236,0.5575,3696.2,3695.9,0.185]
[1736215246436,0.01642322,3696.1,3695.9,0.185]
[1736215246667,3.11669639,3696.0,3695.9,0.185]
[1736215247034,3.12419639,3696.0,3695.9,0.185]
[1736215247435,5.82984639,3696.0,3695.6,0.185]
[1736215247636,0.01642322,3695.9,3695.6,0.185]
[1736215248144,0.01642322,3695.9,3695.7,0.02446083]
[1736215248539,0.01642322,3695.9,3695.6,0.185]
[1736215249440,2.72213322,3695.9,3695.6,0.185]
[1736215250574,2.56669639,3695.7,3695.6,0.185]
[1736215250778,3.14061961,3695.7,3695.6,0.185]
[1736215250944,3.15561961,3695.7,3695.6,0.185]
[1736215251277,3.15561961,3695.7,3695.2,0.185]
[1736215251278,0.55,3695.3,3695.2,0.185]
[1736215251575,2.56669639,3695.2,3695.0,0.185]
[1736215251775,0.56642322,3695.1,3695.0,0.185]
[1736215251953,0.57392322,3695.1,3695.0,0.185]
[1736215253183,0.57392322,3695.1,3694.6,0.364298]
[1736215253407,3.11669639,3694.7,3694.6,0.364298]
[1736215253743,3.14811961,3694.7,3694.6,0.364298]
[1736215254663,3.15561961,3694.7,3694.6,0.364298]
[1736215254840,5.86218961,3694.7,3694.6,0.364298]
[1736215255041,5.84576639,3694.7,3694.6,0.364298]
[1736215255243,6.50679303,3694.7,3694.6,0.364298]
[1736215258884,0.55,3694.7,3694.6,0.364298]
[1736215259173,3.11669639,3694.7,3694.6,0.39125951]
[1736215259355,2.56669639,3694.7,3694.6,0.364298]
[1736215262773,0.55,3694.8,3694.6,0.641998]
[1736215263076,5.27305639,3695.0,3694.6,0.641998]
[1736215263472,2.56669639,3695.0,3694.6,0.641998]
[1736215264877,0.01642322,3695.1,3694.6,0.641998]
[1736215265084,0.01642322,3695.2,3694.7,0.02693912]
[1736215265283,0.01642322,3695.2,3694.8,0.185]
[1736215265809,2.72263322,3695.2,3694.8,0.185]
[1736215266021,2.56669639,3695.0,3694.8,0.185]
[1736215266312,3.28035322,3694.9,3694.8,0.185]
[1736215266513,3.29535322,3694.9,3694.8,0.185]
[1736215266713,3.27157,3694.7,3694.6,0.364298]
[1736215266913,5.85468961,3694.7,3694.6,0.364298]
[1736215267117,6.77893835,3694.7,3694.6,0.364298]
[1736215276004,13.16193474,3694.7,3694.6,8e-06]
[1736215277237,10.59523835,3694.7,3694.6,8e-06]
[1736215277546,13.16193474,3694.7,3694.6,8e-06]
[1736215277833,2.56669639,3693.5,3693.4,0.185]
[1736215278636,0.01642322,3693.7,3693.4,0.185]
[1736215279437,2.56669639,3693.5,3693.4,0.185]
[1736215279732,0.56034022,3693.5,3693.4,0.185]
[1736215281253,3.11669639,3693.6,3693.4,0.185]
[1736215281434,2.56669639,3693.6,3693.4,0.185]
[1736215281954,0.5575,3693.8,3693.5,0.02536537]
[1736215282112,2.56669639,3693.9,3693.5,0.02536537]
[1736215282513,0.01642322,3693.8,3693.5,0.02536537]
[1736215283840,2.56669639,3693.9,3693.4,0.185]
[1736215284041,2.56669639,3694.2,3693.5,0.02536537]
[1736215284234,2.56669639,3694.2,3693.6,0.2777]
[1736215284235,0.01642322,3694.1,3693.6,0.2777]
[1736215284417,0.01642322,3694.1,3693.7,0.02565719]
[1736215284963,1.091166,3694.7,3693.8,0.2777]
[1736215284964,2.70658,3694.7,3693.8,0.2777]
[1736215285139,2.56669639,3694.4,3693.8,0.2777]
[1736215285323,0.01642322,3694.3,3693.9,0.02556057]
[1736215286918,2.56669639,3694.4,3693.9,0.02556057]
[1736215287119,0.0075,3694.6,3693.9,0.02556057]
[1736215287364,0.57392322,3694.6,3694.0,0.30376108]
[1736215287570,0.57392322,3694.6,3693.9,0.02556057]
[1736215287865,0.57392322,3694.6,3694.0,0.02555543]
[1736215288036,0.57392322,3694.6,3693.8,0.2777]
[1736215288232,0.57392322,3694.6,3693.9,0.02556057]
[1736215289752,2.57419639,3694.2,3693.9,0.02556057]
[1736215289963,2.56669639,3694.2,3693.9,0.02556057]
[1736215290145,2.70666,3694.6,3693.8,0.185]
[1736215290146,2.56669639,3694.5,3693.8,0.185]
[1736215290347,0.01642322,3694.4,3694.0,0.02545185]
[1736215290665,0.01642322,3694.4,3694.1,0.02544671]
[1736215290882,0.01642322,3694.4,3693.8,0.185]
[1736215291110,0.01642322,3694.4,3694.2,0.02544157]
[1736215291368,0.01642322,3694.4,3693.8,0.185]
[1736215291548,2.56669639,3694.5,3693.9,0.2777]
[1736215291749,0.01642322,3694.4,3693.9,0.30315699]
[1736215291957,2.56669639,3694.5,3693.9,0.30315699]
[1736215292156,0.01642322,3694.4,3693.9,0.30315699]
[1736215292745,0.01642322,3694.4,3694.0,0.92897168]
[1736215292943,0.01642322,3694.4,3694.0,1.1825057]
[1736215293135,0.01642322,3694.4,3694.1,0.02544671]
[1736215293330,2.33271961,3694.5,3694.1,0.02544671]
[1736215293755,2.33271961,3694.5,3694.1,0.95441839]
[1736215294735,5.03949961,3694.5,3694.1,0.95441839]
[1736215294948,2.56669639,3694.2,3694.1,0.95441839]
[1736215295237,2.56669639,3694.2,3694.1,0.02544671]
[1736215295561,2.56669639,3694.2,3693.9,0.2777]
[1736215295874,2.56669639,3694.2,3694.0,0.02554248]
[1736215296373,2.56669639,3694.2,3693.9,0.185]
[1736215296673,2.56669639,3694.2,3694.0,0.02554248]
[1736215297635,2.70701,3694.1,3694.0,0.02554248]
[1736215297864,2.70701,3694.1,3693.7,1.38710164]
[1736215297865,2.70701,3694.1,3693.8,0.185]
[1736215298172,2.56669639,3693.9,3693.8,0.185]
[1736215298337,2.56669639,3693.9,3693.7,1.38710164]
[1736215298539,2.56669639,3693.9,3693.7,1.57210164]
[1736215298959,5.27385639,3693.9,3693.7,1.57210164]
[1736215299494,5.27385639,3693.9,3693.7,0.185]
[1736215300894,0.5725,3693.8,3693.3,0.2777]
[1736215301191,2.56669639,3693.6,3693.4,0.185]
[1736215302874,2.56669639,3693.6,3693.3,1.38710164]
[1736215303072,2.56669639,3693.6,3693.3,1.57210164]
[1736215303598,2.56669639,3693.6,3693.3,0.185]
[1736215304297,2.55469639,3693.6,3693.3,0.185]
[1736215306720,2.55469639,3693.6,3693.1,0.005]
[1736215307032,2.55469639,3693.6,3693.3,0.185]
[1736215308134,2.56669639,3693.9,3693.3,0.185]
[1736215308287,2.56669639,3693.9,3693.4,0.02577623]
[1736215308630,2.56669639,3693.6,3693.4,0.02577623]
[1736215313434,3.27995,3693.5,3693.4,0.02577623]
[1736215313730,4.68291464,3693.5,3693.4,0.02577623]
[1736215313937,4.09825,3693.5,3693.4,0.02577623]
[1736215314156,1.3908,3693.5,3693.4,0.02577623]
[1736215314306,1.3833,3693.5,3693.4,0.02577623]
[1736215314506,0.8183,3693.5,3693.4,0.02577623]
[1736215314713,2.56669639,3693.6,3693.2,1.38710164]
[1736215315002,2.56669639,3693.6,3693.3,0.02617858]
[1736215316818,2.56669639,3693.6,3693.4,0.93322966]
[1736215317014,2.56669639,3693.9,3693.5,0.02616829]
[1736215317215,2.56669639,3693.9,3693.5,0.30386829]
[1736215318560,5.27385639,3693.9,3693.5,0.02616829]
[1736215318843,2.56669639,3693.6,3693.5,0.02616829]
[1736215319533,2.56669639,3693.6,3693.3,1.1182115]
[1736215319735,2.56669639,3693.6,3693.5,0.02616829]
[1736215320047,3.91629639,3693.6,3693.5,0.02616829]
[1736215320346,2.7301,3693.3,3693.2,1.1182115]
[1736215320514,5.84679639,3693.3,3693.2,1.1182115]
[1736215320713,2.56669639,3693.3,3693.2,1.1182115]
[1736215320903,5.27429639,3693.3,3693.2,1.1182115]
[1736215321110,7.53467603,3693.3,3693.2,1.1182115]
[1736215321330,4.82707603,3693.3,3693.1,0.005]
[1736215321534,3.27267,3693.2,3693.1,0.005]
[1736215323453,3.27267,3693.2,3693.1,0.03052081]
[1736215323454,3.25767,3693.2,3693.1,0.03052081]
[1736215323657,0.55,3693.2,3693.1,0.005]
[1736215324352,2.56669639,3693.3,3693.1,0.005]
[1736215325664,3.0075,3693.8,3693.2,0.2777]
[1736215325665,2.70727,3693.8,3693.2,0.2777]